fUSD/lending_fUSD_20250511
["ID","MTS","AMOUNT","RATE_DAILY","PERIOD"]
[360773964,1747007434068,-150.0,0.00014818,2]
[360773965,1747007434078,-150.0,0.00014819,2]
[360773966,1747007434087,-175.63617784,0.0001482,2]
[360773967,1747007434097,-12500.0,0.00014821,2]
[360773968,1747007434106,-150.0,0.00014822,2]
[360773969,1747007434116,-150.0,0.00014822,2]
[360773970,1747007434125,-150.0,0.00014822,2]
[360773971,1747007434135,-12500.0,0.0001483,2]
[360773972,1747007434144,-150.0,0.0001483,2]
[360773973,1747007434153,-150.0,0.00014832,2]
[360773974,1747007434163,-150.0,0.00014832,2]
[360773975,1747007434173,-247.69397793,0.00014836,2]
[360773976,1747007434182,-191.3358266,0.00014836,2]
[360773977,1747007434192,-8206.16317498,0.00014836,2]
[360773978,1747007434201,-150.0,0.00014838,2]
[360773979,1747007434211,-12500.0,0.00014838,2]
[360773980,1747007434220,-150.0,0.00014841,2]
[360773981,1747007434230,-150.0,0.00014842,2]
[360773982,1747007434240,-150.0,0.00014842,2]
[360773983,1747007434250,-150.0,0.00014843,2]
[360773984,1747007434260,-150.0,0.00014844,2]
[360773985,1747007434270,-150.0,0.00014846,2]
[360773986,1747007434279,-150.0,0.00014846,2]
[360773987,1747007434288,-12500.0,0.00014847,2]
[360773988,1747007434298,-150.0,0.00014848,2]
[360773989,1747007434308,-500.0,0.00014849,2]
[360773990,1747007434318,-175.63617784,0.00014855,2]
[360773991,1747007434327,-1549.83,0.00014855,2]
[360773992,1747007434337,-400.0,0.00014855,2]
[360773993,1747007434346,-12500.0,0.00014856,2]
[360773994,1747007434356,-150.0,0.00014857,2]
[360773995,1747007434365,-150.0,0.00014859,2]
[360773996,1747007434375,-247.69397793,0.00014861,2]
[360773997,1747007434384,-150.0,0.00014861,2]
[360773998,1747007434393,-544.88218439,0.00014862,2]
[360773999,1747007434403,-209.81812726,0.00014862,2]
[360774000,1747007434413,-400.0,0.00014862,2]
[360774001,1747007434423,-664.04,0.00014862,2]
[360774002,1747007434433,-400.0,0.00014862,2]
[360774003,1747007434443,-961.38,0.00014862,2]
[360774004,1747007434453,-400.0,0.00014862,2]
[360774005,1747007434464,-449.13,0.00014862,2]
[360774006,1747007434475,-489.08994635,0.00014862,2]
[360774007,1747007434487,-863.98,0.00014862,2]
[360774008,1747007434497,-400.0,0.00014862,2]
[360774009,1747007434507,-950.02,0.00014862,2]
[360774010,1747007434517,-192.04651815,0.00014862,2]
[360774011,1747007434528,-400.0,0.00014862,2]
[360774012,1747007434537,-400.0,0.00014862,2]
[360774013,1747007434546,-474.11,0.00014862,2]
[360774014,1747007434555,-583.73,0.00014862,2]
[360774015,1747007434565,-9234.06,0.00014862,2]
[360774016,1747007434575,-400.0,0.00014862,2]
[360774017,1747007434584,-2534.29,0.00014862,2]
[360774018,1747007434593,-400.0,0.00014862,2]
[360774019,1747007434603,-19137.66,0.00014862,2]
[360774020,1747007434612,-2362.29,0.00014862,2]
[360774021,1747007434622,-400.0,0.00014862,2]
[360774022,1747007434631,-400.0,0.00014862,2]
[360774023,1747007434641,-1568.29,0.00014862,2]
[360774024,1747007434651,-496.28,0.00014862,2]
[360774025,1747007434660,-400.0,0.00014862,2]
[360774026,1747007434670,-1251.59,0.00014862,2]
[360774027,1747007434684,-400.0,0.00014862,2]
[360774028,1747007434693,-732.89,0.00014863,2]
[360774029,1747007434702,-150.0,0.00014863,2]
[360774030,1747007434711,-732.89,0.00014864,2]
[360774031,1747007434722,-12500.0,0.00014865,2]
[360774032,1747007434731,-150.0,0.00014867,2]
[360774033,1747007434741,-150.0,0.00014868,2]
[360774034,1747007434752,-150.0,0.00014872,2]
[360774035,1747007434763,-150.0,0.00014872,2]
[360774036,1747007434773,-400.0,0.00014872,2]
[360774037,1747007434783,-483.35750954,0.00014872,2]
[360774038,1747007434793,-522.60070961,0.00014872,2]
[360774039,1747007434803,-376.45659774,0.00014872,2]
[360774040,1747007434813,-400.0,0.00014872,2]
[360774041,1747007434823,-400.0,0.00014872,2]
[360774042,1747007434832,-401.0880852,0.00014872,2]
[360774043,1747007434841,-400.0,0.00014872,2]
[360774044,1747007434852,-500.71800626,0.00014872,2]
[360774045,1747007434861,-400.0,0.00014872,2]
[360774046,1747007434870,-400.0,0.00014872,2]
[360774047,1747007434879,-400.0,0.00014872,2]
[360774048,1747007434889,-500.0,0.00014873,2]
[360774049,1747007434899,-500.0,0.00014873,2]
[360774050,1747007434908,-500.0,0.00014873,2]
[360774051,1747007434917,-500.0,0.00014873,2]
[360774052,1747007434927,-215.59530028,0.00014873,2]
[360774053,1747007434936,-502.44539025,0.00014873,2]
[360774054,1747007434945,-500.0,0.00014873,2]
[360774055,1747007434954,-500.0,0.00014873,2]
[360774056,1747007434964,-506.23778375,0.00014873,2]
[360774057,1747007434973,-500.0,0.00014873,2]
[360774058,1747007434982,-155.56568212,0.00014873,2]
[360774059,1747007434992,-500.0,0.00014873,2]
[360774060,1747007435002,-506.91717369,0.00014873,2]
[360774061,1747007435012,-161.1858119,0.00014873,2]
[360774062,1747007435022,-500.40684714,0.00014873,2]
[360774063,1747007435032,-500.0,0.00014873,2]
[360774064,1747007435041,-208.11682232,0.00014873,2]
[360774065,1747007435051,-500.0,0.00014873,2]
[360774066,1747007435060,-500.0,0.00014873,2]
[360774067,1747007435069,-500.0,0.00014873,2]
[360774068,1747007435079,-156.56891646,0.00014873,2]
[360774069,1747007435088,-495.60561423,0.00014873,2]
[360774070,1747007435098,-307.42884594,0.00014873,2]
[360774071,1747007435109,-500.0,0.00014873,2]
[360774072,1747007435118,-500.0,0.00014873,2]
[360774073,1747007435128,-500.0,0.00014873,2]
[360774074,1747007435138,-500.0,0.00014873,2]
[360774075,1747007435147,-400.0,0.00014873,2]
[360774076,1747007435157,-250.44102582,0.00014873,2]
[360774077,1747007435166,-400.0,0.00014873,2]
[360774078,1747007435176,-400.0,0.00014873,2]
[360774079,1747007435186,-400.0,0.00014873,2]
[360774080,1747007435196,-400.0,0.00014873,2]
[360774081,1747007435205,-400.0,0.00014873,2]
[360774082,1747007435215,-400.0,0.00014873,2]
[360774083,1747007435225,-912.58,0.00014873,2]
[360774084,1747007435234,-400.0,0.00014873,2]
[360774085,1747007435244,-400.0,0.00014873,2]
[360774086,1747007435254,-307.49886802,0.00014873,2]
[360774087,1747007435264,-150.17904001,0.00014873,2]
[360774088,1747007435274,-400.0,0.00014873,2]
[360774089,1747007435284,-259.29006995,0.00014873,2]
[360774090,1747007435294,-400.0,0.00014873,2]
[360774091,1747007435303,-402.70138768,0.00014873,2]
[360774092,1747007435312,-506.64,0.00014873,2]
[360774093,1747007435322,-400.0,0.00014873,2]
[360774094,1747007435331,-400.0,0.00014873,2]
[360774095,1747007435341,-411.84416576,0.00014873,2]
[360774096,1747007435350,-400.0,0.00014873,2]
[360774097,1747007435360,-510.67429953,0.00014873,2]
[360774098,1747007435369,-400.0,0.00014873,2]
[360774099,1747007435379,-391.94827582,0.00014873,2]
[360774100,1747007435388,-400.0,0.00014873,2]
[360774101,1747007435397,-527.11364839,0.00014873,2]
[360774102,1747007435407,-180.08947984,0.00014873,2]
[360774103,1747007435416,-400.0,0.00014873,2]
[360774104,1747007435425,-400.0,0.00014873,2]
[360774105,1747007435435,-400.0,0.00014873,2]
[360774106,1747007435444,-400.0,0.00014873,2]
[360774107,1747007435454,-400.0,0.00014873,2]
[360774108,1747007435463,-400.0,0.00014873,2]
[360774109,1747007435472,-400.0,0.00014873,2]
[360774110,1747007435482,-400.0,0.00014873,2]
[360774111,1747007435492,-400.0,0.00014873,2]
[360774112,1747007435502,-400.0,0.00014873,2]
[360774113,1747007435511,-400.0,0.00014873,2]
[360774114,1747007435521,-400.0,0.00014873,2]
[360774115,1747007435531,-400.0,0.00014873,2]
[360774116,1747007435541,-400.0,0.00014873,2]
[360774117,1747007435551,-436.87,0.00014873,2]
[360774118,1747007435561,-400.0,0.00014873,2]
[360774119,1747007435570,-670.79,0.00014873,2]
[360774120,1747007435579,-881.34,0.00014873,2]
[360774121,1747007435588,-400.0,0.00014873,2]
[360774122,1747007435597,-400.0,0.00014873,2]
[360774123,1747007435606,-320.88813517,0.00014873,2]
[360774124,1747007435615,-405.48036913,0.00014873,2]
[360774125,1747007435624,-644.61,0.00014873,2]
[360774126,1747007435633,-299.93,0.00014873,2]
[360774127,1747007435643,-339.15925173,0.00014873,2]
[360774128,1747007435652,-400.0,0.00014873,2]
[360774129,1747007435661,-400.0,0.00014873,2]
[360774130,1747007435670,-400.0,0.00014873,2]
[360774131,1747007435683,-400.0,0.00014873,2]
[360774132,1747007435692,-400.0,0.00014873,2]
[360774133,1747007435701,-400.0,0.00014873,2]
[360774134,1747007435710,-400.0,0.00014873,2]
[360774135,1747007435721,-400.0,0.00014873,2]
[360774136,1747007435730,-698.93,0.00014873,2]
[360774137,1747007435739,-459.82095358,0.00014873,2]
[360774138,1747007435750,-565.31,0.00014873,2]
[360774139,1747007435759,-400.0,0.00014873,2]
[360774140,1747007435768,-400.0,0.00014873,2]
[360774141,1747007435777,-400.0,0.00014873,2]
[360774142,1747007435787,-400.0,0.00014873,2]
[360774143,1747007435796,-528.74,0.00014873,2]
[360774144,1747007435806,-433.34,0.00014873,2]
[360774145,1747007435814,-400.0,0.00014873,2]
[360774146,1747007435823,-400.0,0.00014873,2]
[360774147,1747007435833,-400.0,0.00014873,2]
[360774148,1747007435842,-361.00641023,0.00014873,2]
[360774149,1747007435852,-643.94,0.00014873,2]
[360774150,1747007435861,-400.0,0.00014873,2]
[360774151,1747007435870,-400.0,0.00014873,2]
[360774152,1747007435879,-400.0,0.00014873,2]
[360774153,1747007435888,-400.0,0.00014873,2]
[360774154,1747007435898,-400.0,0.00014873,2]
[360774155,1747007435907,-400.0,0.00014873,2]
[360774156,1747007435916,-467.66916449,0.00014873,2]
[360774157,1747007435926,-400.0,0.00014873,2]
[360774158,1747007435936,-400.0,0.00014873,2]
[360774159,1747007435946,-400.0,0.00014873,2]
[360774160,1747007435956,-400.0,0.00014873,2]
[360774161,1747007435965,-400.0,0.00014873,2]
[360774162,1747007435975,-400.0,0.00014873,2]
[360774163,1747007435984,-400.0,0.00014873,2]
[360774164,1747007435994,-400.0,0.00014873,2]
[360774165,1747007436003,-400.0,0.00014873,2]
[360774166,1747007436014,-467.78,0.00014873,2]
[360774167,1747007436023,-423.91,0.00014873,2]
[360774168,1747007436032,-400.0,0.00014873,2]
[360774169,1747007436042,-400.0,0.00014873,2]
[360774170,1747007436052,-400.0,0.00014873,2]
[360774171,1747007436062,-400.0,0.00014873,2]
[360774172,1747007436072,-400.0,0.00014873,2]
[360774173,1747007436082,-400.0,0.00014873,2]
[360774174,1747007436091,-400.0,0.00014873,2]
[360774175,1747007436100,-400.0,0.00014873,2]
[360774176,1747007436109,-400.0,0.00014873,2]
[360774177,1747007436119,-519.07,0.00014873,2]
[360774178,1747007436128,-400.0,0.00014873,2]
[360774179,1747007436138,-400.0,0.00014873,2]
[360774180,1747007436147,-400.0,0.00014873,2]
[360774181,1747007436157,-400.0,0.00014873,2]
[360774182,1747007436167,-400.0,0.00014873,2]
[360774183,1747007436176,-400.0,0.00014873,2]
[360774184,1747007436186,-400.0,0.00014873,2]
[360774185,1747007436196,-400.0,0.00014873,2]
[360774186,1747007436206,-400.0,0.00014873,2]
[360774187,1747007436216,-400.0,0.00014873,2]
[360774188,1747007436226,-400.0,0.00014873,2]
[360774189,1747007436236,-714.13,0.00014873,2]
[360774190,1747007436245,-400.0,0.00014873,2]
[360774191,1747007436255,-1020.84,0.00014873,2]
[360774192,1747007436264,-400.0,0.00014873,2]
[360774193,1747007436274,-400.0,0.00014873,2]
[360774194,1747007436283,-400.0,0.00014873,2]
[360774195,1747007436293,-400.0,0.00014873,2]
[360774196,1747007436302,-400.0,0.00014873,2]
[360774197,1747007436312,-506.55680244,0.00014873,2]
[360774198,1747007436321,-400.0,0.00014873,2]
[360774199,1747007436331,-400.0,0.00014873,2]
[360774200,1747007436341,-400.0,0.00014873,2]
[360774201,1747007436351,-400.0,0.00014873,2]
[360774202,1747007436360,-772.54,0.00014873,2]
[360774203,1747007436370,-400.0,0.00014873,2]
[360774204,1747007436380,-400.0,0.00014873,2]
[360774205,1747007436389,-400.0,0.00014873,2]
[360774206,1747007436401,-400.0,0.00014873,2]
[360774207,1747007436411,-400.0,0.00014873,2]
[360774208,1747007436420,-400.0,0.00014873,2]
[360774209,1747007436430,-400.0,0.00014873,2]
[360774210,1747007436440,-400.0,0.00014873,2]
[360774211,1747007436450,-400.0,0.00014873,2]
[360774212,1747007436460,-400.0,0.00014873,2]
[360774213,1747007436470,-400.0,0.00014873,2]
[360774214,1747007436480,-400.0,0.00014873,2]
[360774215,1747007436490,-400.0,0.00014873,2]
[360774216,1747007436500,-400.0,0.00014873,2]
[360774217,1747007436509,-400.0,0.00014873,2]
[360774218,1747007436519,-400.0,0.00014873,2]
[360774219,1747007436528,-400.0,0.00014873,2]
[360774220,1747007436538,-400.0,0.00014873,2]
[360774221,1747007436548,-405.3983683,0.00014873,2]
[360774222,1747007436558,-400.0,0.00014873,2]
[360774223,1747007436568,-400.0,0.00014873,2]
[360774224,1747007436582,-400.0,0.00014873,2]
[360774225,1747007436595,-400.0,0.00014873,2]
[360774226,1747007436606,-400.0,0.00014873,2]
[360774227,1747007436618,-400.0,0.00014873,2]
[360774228,1747007436628,-400.0,0.00014873,2]
[360774229,1747007436637,-400.0,0.00014873,2]
[360774230,1747007436648,-610.47,0.00014873,2]
[360774231,1747007436657,-400.0,0.00014873,2]
[360774232,1747007436667,-400.0,0.00014873,2]
[360774233,1747007436678,-400.0,0.00014873,2]
[360774234,1747007436688,-400.0,0.00014873,2]
[360774235,1747007436697,-400.0,0.00014873,2]
[360774236,1747007436707,-460.21,0.00014873,2]
[360774237,1747007436717,-500.0,0.00014873,2]
[360774238,1747007436727,-400.0,0.00014873,2]
[360774239,1747007436736,-400.0,0.00014873,2]
[360774240,1747007436746,-400.0,0.00014873,2]
[360774241,1747007436758,-400.0,0.00014873,2]
[360774242,1747007436769,-400.0,0.00014873,2]
[360774243,1747007436778,-400.0,0.00014873,2]
[360774244,1747007436787,-400.0,0.00014873,2]
[360774245,1747007436796,-400.0,0.00014873,2]
[360774246,1747007436806,-400.0,0.00014873,2]
[360774247,1747007436816,-400.0,0.00014873,2]
[360774248,1747007436826,-400.0,0.00014873,2]
[360774249,1747007436835,-400.0,0.00014873,2]
[360774250,1747007436844,-400.0,0.00014873,2]
[360774251,1747007436854,-400.0,0.00014873,2]
[360774252,1747007436867,-400.0,0.00014873,2]
[360774253,1747007436879,-400.0,0.00014873,2]
[360774254,1747007436888,-400.0,0.00014873,2]
[360774255,1747007436898,-510.00242674,0.00014873,2]
[360774256,1747007436907,-400.0,0.00014873,2]
[360774257,1747007436917,-400.0,0.00014873,2]
[360774258,1747007436926,-400.0,0.00014873,2]
[360774259,1747007436935,-400.0,0.00014873,2]
[360774260,1747007436944,-400.0,0.00014873,2]
[360774261,1747007436954,-400.0,0.00014873,2]
[360774262,1747007436963,-429.04,0.00014873,2]
[360774263,1747007436973,-400.0,0.00014873,2]
[360774264,1747007436982,-400.0,0.00014873,2]
[360774265,1747007436991,-400.0,0.00014873,2]
[360774266,1747007437001,-400.0,0.00014873,2]
[360774267,1747007437010,-12500.0,0.00014874,2]
[360774268,1747007437020,-500.0,0.00014874,2]
[360774269,1747007437030,-2000.0,0.00014874,2]
[360774270,1747007437041,-500.0,0.00014874,2]
[360774271,1747007437051,-200.0,0.00014874,2]
[360774272,1747007437061,-595.62912852,0.00014874,2]
[360774273,1747007437070,-595.62912852,0.00014875,2]
[360774274,1747007437079,-595.62912852,0.00014875,2]
[360774275,1747007437088,-150.0,0.00014875,2]
[360774276,1747007437097,-150.0,0.00014876,2]
[360774277,1747007437106,-150.0,0.00014877,2]
[360774278,1747007437116,-150.0,0.00014878,2]
[360774279,1747007437126,-150.0,0.0001488,2]
[360774280,1747007437136,-1549.83,0.00014882,2]
[360774281,1747007437146,-400.0,0.00014882,2]
[360774282,1747007437156,-12500.0,0.00014882,2]
[360774283,1747007437165,-300.0,0.00014883,2]
[360774284,1747007437175,-400.0,0.00014883,2]
[360774285,1747007437185,-400.0,0.00014883,2]
[360774286,1747007437194,-402.002299,0.00014883,2]
[360774287,1747007437203,-400.0,0.00014883,2]
[360774288,1747007437213,-400.0,0.00014883,2]
[360774289,1747007437222,-501.55736406,0.00014883,2]
[360774290,1747007437231,-368.62676652,0.00014883,2]
[360774291,1747007437242,-400.0,0.00014883,2]
[360774292,1747007437252,-504.14845176,0.00014883,2]
[360774293,1747007437261,-400.0,0.00014883,2]
[360774294,1747007437270,-400.0,0.00014883,2]
[360774295,1747007437280,-400.0,0.00014883,2]
[360774296,1747007437289,-400.0,0.00014883,2]
[360774297,1747007437299,-270.0,0.00014883,2]
[360774298,1747007437308,-400.0,0.00014883,2]
[360774299,1747007437318,-400.0,0.00014883,2]
[360774300,1747007437328,-400.0,0.00014883,2]
[360774301,1747007437337,-400.0,0.00014883,2]
[360774302,1747007437346,-400.0,0.00014883,2]
[360774303,1747007437356,-400.0,0.00014883,2]
[360774304,1747007437366,-400.0,0.00014883,2]
[360774305,1747007437375,-400.0,0.00014883,2]
[360774306,1747007437385,-200.0,0.00014883,2]
[360774307,1747007437394,-400.0,0.00014883,2]
[360774308,1747007437404,-912.58,0.00014883,2]
[360774309,1747007437413,-400.0,0.00014883,2]
[360774310,1747007437423,-400.0,0.00014883,2]
[360774311,1747007437432,-400.0,0.00014883,2]
[360774312,1747007437442,-400.0,0.00014883,2]
[360774313,1747007437452,-506.64,0.00014883,2]
[360774314,1747007437461,-400.0,0.00014883,2]
[360774315,1747007437471,-545.15963195,0.00014883,2]
[360774316,1747007437481,-400.0,0.00014883,2]
[360774317,1747007437491,-400.0,0.00014883,2]
[360774318,1747007437500,-400.0,0.00014883,2]
[360774319,1747007437510,-1284.97,0.00014883,2]
[360774320,1747007437519,-400.0,0.00014883,2]
[360774321,1747007437528,-500.0,0.00014883,2]
[360774322,1747007437538,-400.0,0.00014883,2]
[360774323,1747007437547,-400.0,0.00014883,2]
[360774324,1747007437772,-400.0,0.00014883,2]
[360774325,1747007437782,-400.0,0.00014883,2]
[360774326,1747007437792,-400.0,0.00014883,2]
[360774327,1747007437803,-3186.54,0.00014883,2]
[360774328,1747007437813,-400.0,0.00014883,2]
[360774329,1747007437822,-400.0,0.00014883,2]
[360774330,1747007437833,-340.69326932,0.00014883,2]
[360774331,1747007437844,-400.0,0.00014883,2]
[360774332,1747007437854,-400.0,0.00014883,2]
[360774333,1747007437864,-400.0,0.00014883,2]
[360774334,1747007437874,-436.87,0.00014883,2]
[360774335,1747007437883,-400.0,0.00014883,2]
[360774336,1747007437893,-670.79,0.00014883,2]
[360774337,1747007437904,-881.34,0.00014883,2]
[360774338,1747007437915,-798.35,0.00014883,2]
[360774339,1747007437925,-400.0,0.00014883,2]
[360774340,1747007437934,-2574.80547,0.00014883,2]
[360774341,1747007437946,-1559.88,0.00014883,2]
[360774342,1747007437955,-644.61,0.00014883,2]
[360774343,1747007437965,-400.0,0.00014883,2]
[360774344,1747007437975,-400.0,0.00014883,2]
[360774345,1747007437984,-400.0,0.00014883,2]
[360774346,1747007437994,-400.0,0.00014883,2]
[360774347,1747007438003,-754.59,0.00014883,2]
[360774348,1747007438013,-526.75247352,0.00014883,2]
[360774349,1747007438022,-400.0,0.00014883,2]
[360774350,1747007438031,-400.0,0.00014883,2]
[360774351,1747007438041,-400.0,0.00014883,2]
[360774352,1747007438051,-698.93,0.00014883,2]
[360774353,1747007438060,-158.843993,0.00014883,2]
[360774354,1747007438069,-1770.95,0.00014883,2]
[360774355,1747007438078,-565.31,0.00014883,2]
[360774356,1747007438088,-159.008907,0.00014883,2]
[360774357,1747007438098,-413.35925899,0.00014883,2]
[360774358,1747007438108,-400.0,0.00014883,2]
[360774359,1747007438118,-271.54258861,0.00014883,2]
[360774360,1747007438128,-400.0,0.00014883,2]
[360774361,1747007438137,-12932.05,0.00014883,2]
[360774362,1747007438147,-528.74,0.00014883,2]
[360774363,1747007438156,-1045.913646,0.00014883,2]
[360774364,1747007438167,-433.34,0.00014883,2]
[360774365,1747007438176,-400.0,0.00014883,2]
[360774366,1747007438187,-286.905032,0.00014883,2]
[360774367,1747007438196,-400.0,0.00014883,2]
[360774368,1747007438209,-400.0,0.00014883,2]
[360774369,1747007438218,-643.94,0.00014883,2]
[360774370,1747007438229,-400.0,0.00014883,2]
[360774371,1747007438238,-20556.779026,0.00014883,2]
[360774372,1747007438248,-400.0,0.00014883,2]
[360774373,1747007438257,-400.0,0.00014883,2]
[360774374,1747007438266,-684.56,0.00014883,2]
[360774375,1747007438276,-400.0,0.00014883,2]
[360774376,1747007438286,-400.0,0.00014883,2]
[360774377,1747007438295,-400.0,0.00014883,2]
[360774378,1747007438305,-400.0,0.00014883,2]
[360774380,1747007438315,-400.0,0.00014883,2]
[360774381,1747007438325,-791.52,0.00014883,2]
[360774382,1747007438335,-400.0,0.00014883,2]
[360774383,1747007438344,-400.0,0.00014883,2]
[360774384,1747007438353,-400.0,0.00014883,2]
[360774385,1747007438363,-400.0,0.00014883,2]
[360774386,1747007438373,-400.0,0.00014883,2]
[360774387,1747007438383,-467.78,0.00014883,2]
[360774388,1747007438393,-423.91,0.00014883,2]
[360774389,1747007438403,-174.56743335,0.00014883,2]
[360774390,1747007438413,-400.0,0.00014883,2]
[360774391,1747007438422,-400.0,0.00014883,2]
[360774392,1747007438431,-2333.54,0.00014883,2]
[360774393,1747007438441,-400.0,0.00014883,2]
[360774394,1747007438451,-400.0,0.00014883,2]
[360774395,1747007438460,-1502.08,0.00014883,2]
[360774396,1747007438469,-400.0,0.00014883,2]
[360774397,1747007438478,-400.0,0.00014883,2]
[360774398,1747007438487,-577.49,0.00014883,2]
[360774399,1747007438496,-400.0,0.00014883,2]
[360774400,1747007438506,-400.0,0.00014883,2]
[360774401,1747007438515,-519.07,0.00014883,2]
[360774402,1747007438525,-400.0,0.00014883,2]
[360774403,1747007438535,-2251.57,0.00014883,2]
[360774404,1747007438544,-400.0,0.00014883,2]
[360774405,1747007438554,-400.0,0.00014883,2]
[360774406,1747007438563,-203.48794253,0.00014883,2]
[360774407,1747007438572,-400.0,0.00014883,2]
[360774408,1747007438582,-400.0,0.00014883,2]
[360774409,1747007438593,-400.0,0.00014883,2]
[360774410,1747007438602,-400.0,0.00014883,2]
[360774411,1747007438611,-400.0,0.00014883,2]
[360774412,1747007438620,-400.0,0.00014883,2]
[360774413,1747007438630,-523.16,0.00014883,2]
[360774414,1747007438641,-664.04,0.00014883,2]
[360774415,1747007438650,-664.04,0.00014883,2]
[360774416,1747007438660,-404.62,0.00014883,2]
[360774417,1747007438670,-400.0,0.00014883,2]
[360774418,1747007438684,-400.0,0.00014883,2]
[360774419,1747007438695,-400.0,0.00014883,2]
[360774420,1747007438705,-400.0,0.00014883,2]
[360774422,1747007438714,-714.13,0.00014883,2]
[360774423,1747007438725,-400.0,0.00014883,2]
[360774426,1747007438735,-400.0,0.00014883,2]
[360774427,1747007438745,-400.0,0.00014883,2]
[360774429,1747007438756,-961.38,0.00014883,2]
[360774431,1747007438766,-961.38,0.00014883,2]
[360774433,1747007438776,-1020.84,0.00014883,2]
[360774435,1747007438788,-11400.33,0.00014883,2]
[360774437,1747007438797,-400.0,0.00014883,2]
[360774439,1747007438807,-400.0,0.00014883,2]
[360774441,1747007438817,-400.0,0.00014883,2]
[360774443,1747007438826,-400.0,0.00014883,2]
[360774444,1747007438836,-400.0,0.00014883,2]
[360774445,1747007438847,-400.0,0.00014883,2]
[360774446,1747007438857,-500.0,0.00014883,2]
[360774447,1747007438867,-400.0,0.00014883,2]
[360774448,1747007438877,-5417.89,0.00014883,2]
[360774449,1747007438887,-3404.83,0.00014883,2]
[360774450,1747007438896,-449.13,0.00014883,2]
[360774451,1747007438905,-449.13,0.00014883,2]
[360774452,1747007438915,-400.0,0.00014883,2]
[360774453,1747007438924,-400.0,0.00014883,2]
[360774454,1747007438933,-863.98,0.00014883,2]
[360774455,1747007438942,-863.98,0.00014883,2]
[360774456,1747007438951,-500.36002603,0.00014883,2]
[360774457,1747007438962,-400.0,0.00014883,2]
[360774458,1747007438971,-772.54,0.00014883,2]
[360774459,1747007438981,-400.0,0.00014883,2]
[360774460,1747007438990,-400.0,0.00014883,2]
[360774461,1747007439000,-400.0,0.00014883,2]
[360774462,1747007439009,-1339.35,0.00014883,2]
[360774463,1747007439018,-3578.0,0.00014883,2]
[360774464,1747007439028,-400.0,0.00014883,2]
[360774465,1747007439037,-400.0,0.00014883,2]
[360774466,1747007439047,-400.0,0.00014883,2]
[360774467,1747007439057,-950.02,0.00014883,2]
[360774468,1747007439067,-950.02,0.00014883,2]
[360774469,1747007439084,-400.0,0.00014883,2]
[360774470,1747007439094,-400.0,0.00014883,2]
[360774471,1747007439104,-400.0,0.00014883,2]
[360774472,1747007439115,-400.0,0.00014883,2]
[360774473,1747007439125,-400.0,0.00014883,2]
[360774474,1747007439135,-400.0,0.00014883,2]
[360774475,1747007439145,-3028.88,0.00014883,2]